[Event "*** SCC Grand Prix: Titled Tuesday Blitz"]
[Site "Chess.com"]
[Date "2020.06.23"]
[Round "9"]
[White "davidkalashian"]
[Black "Bayernbk"]
[Result "1-0"]
[WhiteElo "2646"]
[BlackElo "2474"]
[TimeControl "180+1"]
[EndTime "11:42:25 PDT"]
[Termination "davidkalashian won by resignation"]

1. d4 {[%clk 0:03:00.9]} 1... Nf6 {[%clk 0:02:56.6]} 2. c4 {[%clk 0:02:59.9]}
2... e6 {[%clk 0:02:57.1]} 3. Nf3 {[%clk 0:02:58.9]} 3... d5 {[%clk 0:02:57.5]}
4. Nc3 {[%clk 0:02:55.7]} 4... c5 {[%clk 0:02:57.7]} 5. cxd5 {[%clk 0:02:54.9]}
5... Nxd5 {[%clk 0:02:58.1]} 6. e4 {[%clk 0:02:54.4]} 6... Nxc3 {[%clk
0:02:58.1]} 7. bxc3 {[%clk 0:02:55.3]} 7... cxd4 {[%clk 0:02:58.8]} 8. cxd4
{[%clk 0:02:53.5]} 8... Bb4+ {[%clk 0:02:59.4]} 9. Bd2 {[%clk 0:02:53.5]} 9...
Bxd2+ {[%clk 0:02:59.7]} 10. Qxd2 {[%clk 0:02:53.8]} 10... O-O {[%clk
0:03:00.2]} 11. Rb1 {[%clk 0:02:50.5]} 11... b6 {[%clk 0:02:55.7]} 12. Bc4
{[%clk 0:02:48.7]} 12... Bb7 {[%clk 0:02:54.4]} 13. Qe2 {[%clk 0:02:37.6]} 13...
Nc6 {[%clk 0:02:51.6]} 14. Rd1 {[%clk 0:02:34.3]} 14... Qd6 {[%clk 0:02:43.2]}
15. O-O {[%clk 0:02:31.7]} 15... h6 {[%clk 0:02:43.5]} 16. d5 {[%clk 0:02:22]}
16... exd5 {[%clk 0:02:41.9]} 17. Bxd5 {[%clk 0:01:52.7]} 17... Qe7 {[%clk
0:02:40.6]} 18. Rc1 {[%clk 0:01:43.2]} 18... Nd4 {[%clk 0:02:18.3]} 19. Nxd4
{[%clk 0:01:36.1]} 19... Bxd5 {[%clk 0:02:13.2]} 20. exd5 {[%clk 0:01:35.3]}
20... Qd6 {[%clk 0:02:13.7]} 21. Qf3 {[%clk 0:01:32.4]} 21... Rfd8 {[%clk
0:02:13.1]} 22. Nf5 {[%clk 0:01:32.3]} 22... Qd7 {[%clk 0:02:09.2]} 23. d6
{[%clk 0:01:31.4]} 23... g6 {[%clk 0:02:08.1]} 24. Nxh6+ {[%clk 0:01:24.5]}
24... Kg7 {[%clk 0:02:08.6]} 25. Rc7 {[%clk 0:01:24.4]} 1-0

[Event "*** SCC Grand Prix: Titled Tuesday Blitz"]
[Site "Chess.com"]
[Date "2020.06.23"]
[Round "9"]
[White "Alopekos"]
[Black "UKR_Master"]
[Result "0-1"]
[WhiteElo "2422"]
[BlackElo "2324"]
[TimeControl "180+1"]
[EndTime "11:42:41 PDT"]
[Termination "UKR_Master won by resignation"]

1. c4 {[%clk 0:03:00.9]} 1... e5 {[%clk 0:02:59.4]} 2. Nc3 {[%clk 0:02:59.9]}
2... Nf6 {[%clk 0:02:59.9]} 3. d3 {[%clk 0:02:59.2]} 3... d5 {[%clk 0:02:59.5]}
4. cxd5 {[%clk 0:03:00.1]} 4... Nxd5 {[%clk 0:03:00]} 5. g3 {[%clk 0:02:59.2]}
5... Nc6 {[%clk 0:02:58.2]} 6. Bg2 {[%clk 0:02:59.2]} 6... Nxc3 {[%clk
0:02:58.6]} 7. bxc3 {[%clk 0:02:59]} 7... Be7 {[%clk 0:02:59.3]} 8. Nf3 {[%clk
0:02:57.3]} 8... O-O {[%clk 0:02:59.6]} 9. O-O {[%clk 0:02:57.6]} 9... Bg4
{[%clk 0:02:59.1]} 10. h3 {[%clk 0:02:54.7]} 10... Bf5 {[%clk 0:02:58.6]} 11. d4
{[%clk 0:02:52.4]} 11... e4 {[%clk 0:02:57.9]} 12. Nd2 {[%clk 0:02:49.7]} 12...
e3 {[%clk 0:02:58.3]} 13. fxe3 {[%clk 0:02:50.6]} 13... Qd7 {[%clk 0:02:56]} 14.
Kh2 {[%clk 0:02:49.3]} 14... Bg6 {[%clk 0:02:46.9]} 15. e4 {[%clk 0:02:46.2]}
15... Rad8 {[%clk 0:02:42.7]} 16. e3 {[%clk 0:02:40.3]} 16... Na5 {[%clk
0:02:34.9]} 17. Rb1 {[%clk 0:02:36]} 17... b6 {[%clk 0:02:34.2]} 18. Nb3 {[%clk
0:02:31.3]} 18... Nc4 {[%clk 0:02:33.5]} 19. Nd2 {[%clk 0:02:30]} 19... Nxe3
{[%clk 0:02:33.1]} 20. Qe2 {[%clk 0:02:29.8]} 20... Nxf1+ {[%clk 0:02:32.7]} 21.
Qxf1 {[%clk 0:02:30.7]} 21... c5 {[%clk 0:02:31.4]} 22. d5 {[%clk 0:02:29.7]}
22... Bf6 {[%clk 0:02:31.7]} 23. Nc4 {[%clk 0:02:21]} 23... Rfe8 {[%clk
0:02:28.5]} 24. Bf4 {[%clk 0:02:16.3]} 24... Bxe4 {[%clk 0:02:20.8]} 25. Bxe4
{[%clk 0:02:15]} 25... Rxe4 {[%clk 0:02:21.7]} 26. Nd2 {[%clk 0:02:06]} 26...
Ree8 {[%clk 0:02:06.3]} 27. c4 {[%clk 0:02:03.1]} 27... Qf5 {[%clk 0:02:00.9]}
28. Nf3 {[%clk 0:01:52.2]} 28... Re4 {[%clk 0:01:49.4]} 29. Nh4 {[%clk
0:01:50.6]} 29... Bxh4 {[%clk 0:01:49]} 30. gxh4 {[%clk 0:01:50.1]} 30... Qxf4+
{[%clk 0:01:49.4]} 31. Qxf4 {[%clk 0:01:49.8]} 31... Rxf4 {[%clk 0:01:50.3]} 32.
Kg3 {[%clk 0:01:50.7]} 32... Re4 {[%clk 0:01:50.6]} 33. Rf1 {[%clk 0:01:49]}
33... Rxc4 {[%clk 0:01:50.3]} 34. Re1 {[%clk 0:01:48.6]} 34... Rd4 {[%clk
0:01:50.4]} 35. d6 {[%clk 0:01:48.7]} 35... R4xd6 {[%clk 0:01:50.2]} 0-1

[Event "*** SCC Grand Prix: Titled Tuesday Blitz"]
[Site "Chess.com"]
[Date "2020.06.23"]
[Round "9"]
[White "pastouche06"]
[Black "WonderChampion"]
[Result "1-0"]
[WhiteElo "2456"]
[BlackElo "2043"]
[TimeControl "180+1"]
[EndTime "11:42:41 PDT"]
[Termination "pastouche06 won by resignation"]

1. d4 {[%clk 0:02:53.7]} 1... d5 {[%clk 0:02:57]} 2. c4 {[%clk 0:02:53.8]} 2...
e6 {[%clk 0:02:55.5]} 3. Nc3 {[%clk 0:02:53.3]} 3... c6 {[%clk 0:02:55.6]} 4. e4
{[%clk 0:02:49.7]} 4... dxe4 {[%clk 0:02:53.2]} 5. Nxe4 {[%clk 0:02:50.6]} 5...
Bb4+ {[%clk 0:02:49.6]} 6. Nc3 {[%clk 0:02:50.1]} 6... Nf6 {[%clk 0:02:49]} 7.
a3 {[%clk 0:02:48]} 7... Bxc3+ {[%clk 0:02:46.1]} 8. bxc3 {[%clk 0:02:48.9]}
8... O-O {[%clk 0:02:45.9]} 9. Nf3 {[%clk 0:02:48.5]} 9... c5 {[%clk 0:02:40.4]}
10. Bd3 {[%clk 0:02:46.1]} 10... Nc6 {[%clk 0:02:37.2]} 11. O-O {[%clk
0:02:45.4]} 11... cxd4 {[%clk 0:02:35.1]} 12. cxd4 {[%clk 0:02:46.3]} 12... Re8
{[%clk 0:02:34.3]} 13. Bb2 {[%clk 0:02:43.9]} 13... Bd7 {[%clk 0:02:26.7]} 14.
Qe2 {[%clk 0:02:41.4]} 14... a5 {[%clk 0:02:20.1]} 15. Ne5 {[%clk 0:02:40.8]}
15... Nxe5 {[%clk 0:02:17.5]} 16. dxe5 {[%clk 0:02:41.7]} 16... Qb6 {[%clk
0:02:07.8]} 17. exf6 {[%clk 0:02:40.2]} 17... gxf6 {[%clk 0:02:05.6]} 18. Bxf6
{[%clk 0:02:38.1]} 18... e5 {[%clk 0:02:04.5]} 19. Qf3 {[%clk 0:02:28.7]} 19...
Qd4 {[%clk 0:01:10.6]} 20. Be4 {[%clk 0:02:22.1]} 20... Bc6 {[%clk 0:00:50.8]}
21. Qg3+ {[%clk 0:02:17.8]} 1-0

[Event "*** SCC Grand Prix: Titled Tuesday Blitz"]
[Site "Chess.com"]
[Date "2020.06.23"]
[Round "9"]
[White "ChronicUnhappiness"]
[Black "Logman74"]
[Result "1-0"]
[WhiteElo "2370"]
[BlackElo "2461"]
[TimeControl "180+1"]
[EndTime "11:42:46 PDT"]
[Termination "ChronicUnhappiness won by resignation"]

1. c4 {[%clk 0:02:38.6]} 1... Nf6 {[%clk 0:02:58.5]} 2. Nf3 {[%clk 0:02:37.3]}
2... d6 {[%clk 0:02:57.2]} 3. Nc3 {[%clk 0:02:35.9]} 3... e5 {[%clk 0:02:55.8]}
4. d4 {[%clk 0:02:35.8]} 4... exd4 {[%clk 0:02:55]} 5. Nxd4 {[%clk 0:02:35.2]}
5... Nc6 {[%clk 0:02:55.5]} 6. Nxc6 {[%clk 0:02:34.1]} 6... bxc6 {[%clk
0:02:56]} 7. g3 {[%clk 0:02:34.9]} 7... Be7 {[%clk 0:02:55.7]} 8. Bg2 {[%clk
0:02:35.5]} 8... O-O {[%clk 0:02:56]} 9. O-O {[%clk 0:02:36.1]} 9... Be6 {[%clk
0:02:55]} 10. b3 {[%clk 0:02:36.1]} 10... h6 {[%clk 0:02:53.5]} 11. Bb2 {[%clk
0:02:35.9]} 11... Nd7 {[%clk 0:02:52]} 12. Qc2 {[%clk 0:02:36]} 12... Bf6 {[%clk
0:02:51.8]} 13. Rad1 {[%clk 0:02:33.7]} 13... Ne5 {[%clk 0:02:40.6]} 14. Ne4
{[%clk 0:02:32.7]} 14... Be7 {[%clk 0:02:37.9]} 15. Bxe5 {[%clk 0:02:29.6]}
15... Bf5 {[%clk 0:02:28.4]} 16. Qb2 {[%clk 0:02:21.5]} 16... f6 {[%clk
0:02:24.1]} 17. Bc3 {[%clk 0:02:18.5]} 17... Rb8 {[%clk 0:02:22.3]} 18. Nd2
{[%clk 0:02:14.6]} 18... Qd7 {[%clk 0:02:20.6]} 19. Nf3 {[%clk 0:02:13.8]} 19...
Bh7 {[%clk 0:02:18.2]} 20. Nd4 {[%clk 0:02:10.1]} 20... c5 {[%clk 0:02:15.5]}
21. Nc2 {[%clk 0:02:09.2]} 21... c6 {[%clk 0:02:14.1]} 22. Rd2 {[%clk
0:02:06.6]} 22... Qc7 {[%clk 0:01:59.4]} 23. e4 {[%clk 0:02:05.4]} 23... Rf7
{[%clk 0:01:51.6]} 24. Ne3 {[%clk 0:02:05.3]} 24... Bf8 {[%clk 0:01:50.4]} 25.
Bh3 {[%clk 0:01:52]} 25... Re7 {[%clk 0:01:48.2]} 26. Bf5 {[%clk 0:01:47.9]}
26... a5 {[%clk 0:01:47]} 27. Bxh7+ {[%clk 0:01:46.4]} 27... Kxh7 {[%clk
0:01:46.3]} 28. Qc2 {[%clk 0:01:45.8]} 28... a4 {[%clk 0:01:44.4]} 29. e5+
{[%clk 0:01:43]} 29... Kg8 {[%clk 0:01:44.3]} 30. exd6 {[%clk 0:01:42.2]} 1-0

[Event "*** SCC Grand Prix: Titled Tuesday Blitz"]
[Site "Chess.com"]
[Date "2020.06.23"]
[Round "9"]
[White "Lion-Al-Messi"]
[Black "PredragNikac"]
[Result "1-0"]
[WhiteElo "2456"]
[BlackElo "2227"]
[TimeControl "180+1"]
[EndTime "11:42:58 PDT"]
[Termination "Lion-Al-Messi won by resignation"]

1. e4 {[%clk 0:03:00.4]} 1... d5 {[%clk 0:02:58.7]} 2. exd5 {[%clk 0:02:55.7]}
2... Nf6 {[%clk 0:02:52.8]} 3. d4 {[%clk 0:02:51.2]} 3... Qxd5 {[%clk
0:02:51.6]} 4. Nc3 {[%clk 0:02:45.7]} 4... Qa5 {[%clk 0:02:48.7]} 5. Nf3 {[%clk
0:02:37.6]} 5... Bg4 {[%clk 0:02:47.5]} 6. Bc4 {[%clk 0:02:31.1]} 6... Nc6
{[%clk 0:02:42.9]} 7. h3 {[%clk 0:02:04.5]} 7... Bxf3 {[%clk 0:02:29.5]} 8. Qxf3
{[%clk 0:02:05.4]} 8... O-O-O {[%clk 0:02:28]} 9. d5 {[%clk 0:01:59.5]} 9... Nd4
{[%clk 0:02:24.5]} 10. Qd3 {[%clk 0:01:54.3]} 10... e5 {[%clk 0:02:23.8]} 11.
O-O {[%clk 0:01:52.3]} 11... Bb4 {[%clk 0:02:15.8]} 12. a3 {[%clk 0:01:46.3]}
12... Bxc3 {[%clk 0:02:11.1]} 13. bxc3 {[%clk 0:01:47.2]} 13... Nc6 {[%clk
0:02:02.4]} 14. Qf5+ {[%clk 0:01:46.9]} 14... Kb8 {[%clk 0:01:57.3]} 15. dxc6
{[%clk 0:01:46.8]} 15... Qxc3 {[%clk 0:01:55.4]} 16. Rb1 {[%clk 0:01:34.2]}
16... Qxc4 {[%clk 0:01:53.6]} 17. Rxb7+ {[%clk 0:01:33.7]} 17... Ka8 {[%clk
0:01:53.3]} 18. Be3 {[%clk 0:01:34.6]} 18... Qxc6 {[%clk 0:01:09.8]} 1-0

[Event "*** SCC Grand Prix: Titled Tuesday Blitz"]
[Site "Chess.com"]
[Date "2020.06.23"]
[Round "9"]
[White "MatyChess1"]
[Black "dpopadic"]
[Result "1-0"]
[WhiteElo "2545"]
[BlackElo "2352"]
[TimeControl "180+1"]
[EndTime "11:43:03 PDT"]
[Termination "MatyChess1 won by resignation"]

1. d4 {[%clk 0:03:00.9]} 1... Nf6 {[%clk 0:02:59.1]} 2. c4 {[%clk 0:02:59.9]}
2... g6 {[%clk 0:02:58.7]} 3. g3 {[%clk 0:03:00.2]} 3... Bg7 {[%clk 0:02:59.2]}
4. Bg2 {[%clk 0:03:00.8]} 4... d6 {[%clk 0:02:59.9]} 5. Nc3 {[%clk 0:03:01.2]}
5... O-O {[%clk 0:03:00.6]} 6. e4 {[%clk 0:03:01.6]} 6... Nbd7 {[%clk 0:02:57]}
7. Nge2 {[%clk 0:02:54.1]} 7... e5 {[%clk 0:02:56.8]} 8. d5 {[%clk 0:02:54.4]}
8... Nc5 {[%clk 0:02:54.9]} 9. b4 {[%clk 0:02:53.3]} 9... Ncd7 {[%clk
0:02:53.2]} 10. a3 {[%clk 0:02:53.5]} 10... a5 {[%clk 0:02:52.7]} 11. Rb1 {[%clk
0:02:50.7]} 11... axb4 {[%clk 0:02:51.8]} 12. axb4 {[%clk 0:02:51.6]} 12... Nb6
{[%clk 0:02:49.8]} 13. Qd3 {[%clk 0:02:41.3]} 13... Bd7 {[%clk 0:02:45.1]} 14.
h3 {[%clk 0:02:39]} 14... Na4 {[%clk 0:02:44.4]} 15. O-O {[%clk 0:02:36.7]}
15... Nxc3 {[%clk 0:02:43.5]} 16. Nxc3 {[%clk 0:02:37.6]} 16... Qe7 {[%clk
0:02:41.5]} 17. Be3 {[%clk 0:02:35.6]} 17... Rfb8 {[%clk 0:02:31.6]} 18. c5
{[%clk 0:02:34.9]} 18... Ne8 {[%clk 0:02:15.1]} 19. Qc4 {[%clk 0:02:29.7]} 19...
Bf8 {[%clk 0:02:12.9]} 20. Rfc1 {[%clk 0:02:27.3]} 20... h5 {[%clk 0:02:04.4]}
21. h4 {[%clk 0:02:24.2]} 21... Kh7 {[%clk 0:02:03.5]} 22. c6 {[%clk 0:02:17.7]}
22... bxc6 {[%clk 0:02:01.4]} 23. dxc6 {[%clk 0:02:17.7]} 23... Be6 {[%clk
0:02:00.5]} 24. Nd5 {[%clk 0:02:17.8]} 24... Bxd5 {[%clk 0:01:50.8]} 25. Qxd5
{[%clk 0:02:18.7]} 25... Nf6 {[%clk 0:01:46.7]} 26. Qd3 {[%clk 0:02:15.5]} 26...
Bh6 {[%clk 0:01:44.6]} 27. b5 {[%clk 0:02:06.8]} 27... Bxe3 {[%clk 0:01:43.7]}
28. Qxe3 {[%clk 0:02:07.7]} 28... Rb6 {[%clk 0:01:40]} 29. f3 {[%clk 0:02:03.4]}
29... Rab8 {[%clk 0:01:39.4]} 30. Bf1 {[%clk 0:02:03.9]} 30... d5 {[%clk
0:01:25.8]} 31. exd5 {[%clk 0:02:02.3]} 31... Nxd5 {[%clk 0:01:25.4]} 32. Qc5
{[%clk 0:01:58.6]} 32... Qxc5+ {[%clk 0:01:16.7]} 33. Rxc5 {[%clk 0:01:59.5]}
33... f6 {[%clk 0:01:16.5]} 34. Rxd5 {[%clk 0:01:58.7]} 1-0

[Event "*** SCC Grand Prix: Titled Tuesday Blitz"]
[Site "Chess.com"]
[Date "2020.06.23"]
[Round "9"]
[White "Anton_Demchenko"]
[Black "GMTalks_Youtube"]
[Result "1-0"]
[WhiteElo "2843"]
[BlackElo "2675"]
[TimeControl "180+1"]
[EndTime "11:43:07 PDT"]
[Termination "Anton_Demchenko won by resignation"]

1. d4 {[%clk 0:03:00.9]} 1... d5 {[%clk 0:02:59.4]} 2. Nf3 {[%clk 0:03:00.5]}
2... Nf6 {[%clk 0:02:58.8]} 3. Bf4 {[%clk 0:03:01]} 3... e6 {[%clk 0:02:58.8]}
4. e3 {[%clk 0:03:01.7]} 4... Bd6 {[%clk 0:02:58.6]} 5. Ne5 {[%clk 0:03:02.4]}
5... O-O {[%clk 0:02:57.8]} 6. Nd2 {[%clk 0:03:03]} 6... c5 {[%clk 0:02:57.8]}
7. c3 {[%clk 0:03:03.6]} 7... Qc7 {[%clk 0:02:57.8]} 8. Bd3 {[%clk 0:03:04.2]}
8... Nbd7 {[%clk 0:02:57.8]} 9. Ndf3 {[%clk 0:03:04.8]} 9... c4 {[%clk
0:02:58.1]} 10. Bc2 {[%clk 0:03:04.7]} 10... b5 {[%clk 0:02:58]} 11. a3 {[%clk
0:03:01.6]} 11... Bb7 {[%clk 0:02:57.7]} 12. g4 {[%clk 0:02:47.1]} 12... Nb6
{[%clk 0:02:42.9]} 13. g5 {[%clk 0:02:37.5]} 13... Ne4 {[%clk 0:02:42.3]} 14.
Rg1 {[%clk 0:02:30.5]} 14... a5 {[%clk 0:02:23.2]} 15. Nh4 {[%clk 0:02:30.2]}
15... b4 {[%clk 0:02:22.2]} 16. f3 {[%clk 0:02:29.7]} 16... bxc3 {[%clk
0:02:17.2]} 17. fxe4 {[%clk 0:02:26.2]} 17... cxb2 {[%clk 0:02:17.1]} 18. Rb1
{[%clk 0:02:25.9]} 18... dxe4 {[%clk 0:02:11.9]} 19. Qh5 {[%clk 0:01:57.9]}
19... c3 {[%clk 0:01:48.5]} 20. Ng4 {[%clk 0:01:38.6]} 20... Bxf4 {[%clk
0:01:16.1]} 21. Nf6+ {[%clk 0:01:38.3]} 21... gxf6 {[%clk 0:01:16.5]} 22. gxf6+
{[%clk 0:01:38.8]} 22... Kh8 {[%clk 0:01:17.1]} 23. Rg7 {[%clk 0:01:37.9]} 23...
h6 {[%clk 0:01:16.4]} 24. Qg6 {[%clk 0:01:37.8]} 1-0

[Event "*** SCC Grand Prix: Titled Tuesday Blitz"]
[Site "Chess.com"]
[Date "2020.06.23"]
[Round "9"]
[White "Efremov_Vlad"]
[Black "larbiben"]
[Result "1-0"]
[WhiteElo "2193"]
[BlackElo "2030"]
[TimeControl "180+1"]
[EndTime "11:43:25 PDT"]
[Termination "Efremov_Vlad won on time"]

1. d4 {[%clk 0:03:00.9]} 1... d5 {[%clk 0:02:59.2]} 2. c4 {[%clk 0:03:01.2]}
2... c6 {[%clk 0:02:59.2]} 3. Nf3 {[%clk 0:03:01.6]} 3... Nf6 {[%clk 0:02:57.5]}
4. Qb3 {[%clk 0:03:01.6]} 4... e6 {[%clk 0:02:54.3]} 5. Bg5 {[%clk 0:03:00.9]}
5... Be7 {[%clk 0:02:54]} 6. Nc3 {[%clk 0:03:01]} 6... O-O {[%clk 0:02:53.3]} 7.
e3 {[%clk 0:03:01.2]} 7... Nbd7 {[%clk 0:02:52.5]} 8. Be2 {[%clk 0:02:58.9]}
8... dxc4 {[%clk 0:02:52.4]} 9. Bxc4 {[%clk 0:02:59.7]} 9... Nd5 {[%clk
0:02:52.4]} 10. Bxe7 {[%clk 0:02:58.9]} 10... Qxe7 {[%clk 0:02:52.4]} 11. O-O
{[%clk 0:02:59]} 11... Nxc3 {[%clk 0:02:39.4]} 12. bxc3 {[%clk 0:02:58.1]} 12...
b5 {[%clk 0:02:39.2]} 13. Bd3 {[%clk 0:02:57.5]} 13... Bb7 {[%clk 0:02:39.5]}
14. a4 {[%clk 0:02:55.2]} 14... a6 {[%clk 0:02:39.7]} 15. axb5 {[%clk
0:02:53.5]} 15... cxb5 {[%clk 0:02:38.8]} 16. Nd2 {[%clk 0:02:51.5]} 16... Nf6
{[%clk 0:02:36.1]} 17. c4 {[%clk 0:02:50.7]} 17... bxc4 {[%clk 0:02:26.5]} 18.
Nxc4 {[%clk 0:02:51.6]} 18... Rfb8 {[%clk 0:02:19.2]} 19. Qc2 {[%clk 0:02:50.2]}
19... Nd5 {[%clk 0:02:08.4]} 20. Bxh7+ {[%clk 0:02:46.4]} 20... Kh8 {[%clk
0:02:08.5]} 21. Be4 {[%clk 0:02:45.9]} 21... Nb4 {[%clk 0:02:06.4]} 22. Qb1
{[%clk 0:02:45.5]} 22... Bd5 {[%clk 0:01:56.8]} 23. Bxd5 {[%clk 0:02:41.1]}
23... exd5 {[%clk 0:01:57.7]} 24. Ne5 {[%clk 0:02:41.6]} 24... Qg5 {[%clk
0:01:40.3]} 25. Nxf7+ {[%clk 0:02:39.7]} 25... Kg8 {[%clk 0:00:02.7]} 26. Nxg5
{[%clk 0:02:40.6]} 26... Rb6 {[%clk 0:00:01.3]} 27. Qh7+ {[%clk 0:02:38.4]} 1-0

[Event "*** SCC Grand Prix: Titled Tuesday Blitz"]
[Site "Chess.com"]
[Date "2020.06.23"]
[Round "9"]
[White "Michaelson_11"]
[Black "ElusiveCat"]
[Result "1-0"]
[WhiteElo "2096"]
[BlackElo "2320"]
[TimeControl "180+1"]
[EndTime "11:43:38 PDT"]
[Termination "Michaelson_11 won by resignation"]

1. e4 {[%clk 0:03:00.9]} 1... Nf6 {[%clk 0:02:59.1]} 2. e5 {[%clk 0:03:00.3]}
2... Nd5 {[%clk 0:02:59.2]} 3. d4 {[%clk 0:03:01.2]} 3... d6 {[%clk 0:02:59.2]}
4. c4 {[%clk 0:03:02.1]} 4... Nb6 {[%clk 0:02:58.7]} 5. exd6 {[%clk 0:03:03]}
5... cxd6 {[%clk 0:02:59.3]} 6. Nc3 {[%clk 0:02:59]} 6... g6 {[%clk 0:02:59.1]}
7. Be3 {[%clk 0:02:46.1]} 7... Bg7 {[%clk 0:02:57]} 8. Rc1 {[%clk 0:02:46.6]}
8... O-O {[%clk 0:02:56.1]} 9. b3 {[%clk 0:02:47.5]} 9... Nc6 {[%clk 0:02:55.5]}
10. d5 {[%clk 0:02:48.4]} 10... Ne5 {[%clk 0:02:52.6]} 11. Be2 {[%clk 0:02:48]}
11... f5 {[%clk 0:02:51.9]} 12. f4 {[%clk 0:02:47.8]} 12... Ng4 {[%clk
0:02:38.2]} 13. Bxg4 {[%clk 0:02:46.4]} 13... fxg4 {[%clk 0:02:39.1]} 14. Nge2
{[%clk 0:02:44.2]} 14... e5 {[%clk 0:02:28.4]} 15. O-O {[%clk 0:02:35]} 15...
Be6 {[%clk 0:02:29.3]} 16. dxe6 {[%clk 0:02:31.2]} 16... Rc8 {[%clk 0:02:18.8]}
17. Nd5 {[%clk 0:02:24.1]} 17... Re8 {[%clk 0:02:14.9]} 18. Bxb6 {[%clk
0:02:19.6]} 18... axb6 {[%clk 0:02:15.8]} 19. Kh1 {[%clk 0:02:08.7]} 19... exf4
{[%clk 0:02:08.7]} 20. Nexf4 {[%clk 0:02:08]} 20... Qh4 {[%clk 0:02:04.9]} 21.
Nxb6 {[%clk 0:02:02.8]} 21... Rc5 {[%clk 0:01:51.4]} 22. Nbd5 {[%clk 0:01:59.7]}
22... g3 {[%clk 0:01:44.5]} 23. h3 {[%clk 0:01:49.9]} 23... Be5 {[%clk
0:01:36.8]} 24. Nd3 {[%clk 0:01:43.6]} 24... Rxd5 {[%clk 0:01:22.1]} 25. cxd5
{[%clk 0:01:40.2]} 25... Bg7 {[%clk 0:01:20.6]} 26. Rc7 {[%clk 0:01:34.5]} 26...
Qd4 {[%clk 0:01:14.5]} 27. Qf3 {[%clk 0:01:30.6]} 27... Rf8 {[%clk 0:01:01.9]}
28. Rxg7+ {[%clk 0:01:27.9]} 28... Qxg7 {[%clk 0:01:00.4]} 29. Qxf8+ {[%clk
0:01:28.8]} 29... Qxf8 {[%clk 0:01:00.8]} 30. Rxf8+ {[%clk 0:01:29.7]} 30...
Kxf8 {[%clk 0:01:01.5]} 31. Kg1 {[%clk 0:01:28.4]} 1-0

[Event "*** SCC Grand Prix: Titled Tuesday Blitz"]
[Site "Chess.com"]
[Date "2020.06.23"]
[Round "9"]
[White "kirillshevchenko"]
[Black "Dr-Bassem"]
[Result "0-1"]
[WhiteElo "2922"]
[BlackElo "2825"]
[TimeControl "180+1"]
[EndTime "11:43:51 PDT"]
[Termination "Dr-Bassem won by resignation"]

1. d4 {[%clk 0:03:00.9]} 1... e6 {[%clk 0:02:57.5]} 2. Nf3 {[%clk 0:02:59.9]}
2... f5 {[%clk 0:02:58]} 3. c4 {[%clk 0:02:56.6]} 3... Nf6 {[%clk 0:02:58.5]} 4.
Nc3 {[%clk 0:02:56.7]} 4... Be7 {[%clk 0:02:54.4]} 5. g3 {[%clk 0:02:56.1]} 5...
O-O {[%clk 0:02:55]} 6. Bg2 {[%clk 0:02:56.6]} 6... d6 {[%clk 0:02:55.7]} 7. O-O
{[%clk 0:02:56.6]} 7... Qe8 {[%clk 0:02:56.3]} 8. Re1 {[%clk 0:02:55.6]} 8...
Ne4 {[%clk 0:02:54.2]} 9. Nxe4 {[%clk 0:02:45.1]} 9... fxe4 {[%clk 0:02:55.1]}
10. Nd2 {[%clk 0:02:45.4]} 10... d5 {[%clk 0:02:55.7]} 11. cxd5 {[%clk 0:02:23]}
11... exd5 {[%clk 0:02:56.6]} 12. f3 {[%clk 0:02:23]} 12... Bf6 {[%clk
0:02:42.8]} 13. fxe4 {[%clk 0:02:16.1]} 13... Bxd4+ {[%clk 0:02:42.8]} 14. Kh1
{[%clk 0:02:16.7]} 14... dxe4 {[%clk 0:02:33.5]} 15. Nxe4 {[%clk 0:02:16.1]}
15... Nc6 {[%clk 0:02:30.8]} 16. Bf4 {[%clk 0:01:52.4]} 16... Bb6 {[%clk
0:02:06.7]} 17. Rf1 {[%clk 0:01:45]} 17... Bg4 {[%clk 0:01:47.9]} 18. h3 {[%clk
0:01:24.8]} 18... Bxh3 {[%clk 0:01:39.5]} 19. Bxh3 {[%clk 0:01:09]} 19... Qxe4+
{[%clk 0:01:38.7]} 20. Bg2 {[%clk 0:01:09.6]} 20... Qg6 {[%clk 0:01:38.7]} 21.
Qd5+ {[%clk 0:01:08.8]} 21... Kh8 {[%clk 0:01:35.8]} 22. Be4 {[%clk 0:01:05.9]}
22... Qg4 {[%clk 0:01:33.7]} 23. Bg2 {[%clk 0:00:49]} 23... Rf5 {[%clk
0:01:30.7]} 0-1

[Event "*** SCC Grand Prix: Titled Tuesday Blitz"]
[Site "Chess.com"]
[Date "2020.06.23"]
[Round "9"]
[White "Belka1989"]
[Black "zurzan"]
[Result "0-1"]
[WhiteElo "2283"]
[BlackElo "1939"]
[TimeControl "180+1"]
[EndTime "11:43:53 PDT"]
[Termination "zurzan won on time"]

1. d4 {[%clk 0:00:54.3]} 1... d6 {[%clk 0:02:58.8]} 2. Nf3 {[%clk 0:00:50.6]}
2... g6 {[%clk 0:02:57.5]} 3. Bf4 {[%clk 0:00:49.6]} 3... Bg7 {[%clk 0:02:56.8]}
4. e3 {[%clk 0:00:49.9]} 4... f5 {[%clk 0:02:56.6]} 5. c4 {[%clk 0:00:47.1]}
5... Nf6 {[%clk 0:02:56.4]} 6. Nc3 {[%clk 0:00:45.1]} 6... O-O {[%clk
0:02:56.2]} 7. Qc2 {[%clk 0:00:45]} 7... c6 {[%clk 0:02:55.9]} 8. O-O-O {[%clk
0:00:45.1]} 8... Nbd7 {[%clk 0:02:52.7]} 9. h3 {[%clk 0:00:45]} 9... h6 {[%clk
0:02:48.7]} 10. g4 {[%clk 0:00:44.4]} 10... g5 {[%clk 0:02:48.8]} 11. Bg3 {[%clk
0:00:33]} 11... fxg4 {[%clk 0:02:48.6]} 12. hxg4 {[%clk 0:00:26.8]} 12... Nxg4
{[%clk 0:02:49.3]} 13. Bd3 {[%clk 0:00:15.9]} 13... Ndf6 {[%clk 0:02:47.9]} 14.
Bg6 {[%clk 0:00:13.6]} 14... Be6 {[%clk 0:02:32.1]} 15. e4 {[%clk 0:00:12.4]}
15... Bxc4 {[%clk 0:02:29.1]} 16. e5 {[%clk 0:00:12.5]} 16... Nd5 {[%clk
0:02:23]} 17. exd6 {[%clk 0:00:11.3]} 17... exd6 {[%clk 0:02:20.4]} 18. Ne4
{[%clk 0:00:11.8]} 18... Bxa2 {[%clk 0:02:14.2]} 19. Bh5 {[%clk 0:00:08.7]}
19... Ngf6 {[%clk 0:02:09.9]} 20. Bg6 {[%clk 0:00:07.8]} 20... Nxe4 {[%clk
0:02:00.6]} 21. Bxe4 {[%clk 0:00:07]} 21... Nf6 {[%clk 0:02:00.1]} 22. Bd3
{[%clk 0:00:05.5]} 22... d5 {[%clk 0:01:57.9]} 23. Qb3 {[%clk 0:00:04.5]} 23...
Bxb3 {[%clk 0:01:57.1]} 0-1